Cogmind - Beta 13 @@@ ROGUE MODE // 2024.07.11 @ 01:21:39 Player: celerysam Result: Destroyed by B-75 Beast with Heavy Plasma Cannon Performance ------------- Evolutions (5) 2500 Regions Visited (8) 1600 Robots Destroyed (9) 45 Value Destroyed (209) 209 Prototype IDs (1) 20 Alien Tech Used (0) 0 Bonus (500) 500 TOTAL SCORE: 4874 Bonus ------- Entered DSFs 500 Cogmind --------- Core Integrity 0/1000 Matter 45/300 Energy 100/100 System Corruption 6% Temperature Cool (12) Movement Core (50) Location -5/Factory Parts ------- > --- POWER (2) -------- (None) > --- PROPULSION (7) --- (None) > --- UTILITY (4) ------ Advanced Weight Redist. System > --- WEAPON (4) ------- (None) > --- INVENTORY (5) ---- Antigrav System Antigrav System Antigrav System Matter Compressor (0) Advanced Hacking Suite Peak State ------------ > --- POWER ------------ Light Nuclear Core Fusion Compressor > --- PROPULSION ------- Gravmag Array Surge Thruster Nuclear Pulse Thruster > --- UTILITY ---------- Advanced Cooling System Advanced Weight Redist. System Transmission Jammer > --- WEAPON ----------- Backup Laser I > --- INVENTORY -------- Advanced Hacking Suite [Rating: 40] Favorites ----------- Power Light Ion Engine Engine Light Ion Engine Power Core Light Nuclear Core Propulsion Flight Unit Leg Improved Aluminum Leg Wheel Compact Wheel Hover Unit Gravmag Array Flight Unit Flight Unit Utility Small Storage Unit Device Advanced Weight Redist. System Storage Small Storage Unit Protection Backup Plating I Weapon Mini Grenade Launcher Energy Gun Particle Gun Ballistic Gun Light Assault Rifle Launcher Mini Grenade Launcher Build | -11 -10 -9 -9 -8 -7 -7 -6 -5 ------- Run | Yrd Mat Mat Min Mat Fac DSF Fac Fac Slots Evolved 10 | . . 2 . 2 2 . 2 2 Power 1 | . . . . 1 . . . . Propulsion 5 | . . 2 . . 2 . . 1 Utility 2 | . . . . 1 . . 1 . Weapon 2 | . . . . . . . 1 1 Parts Attached 48 | 7 10 12 7 1 1 1 . 9 Power 10 | 1 2 2 2 . . . . 3 Engine 7 | 1 2 2 2 . . . . . Core 3 | . . . . . . . . 3 Reactor . | . . . . . . . . . Propulsion 23 | 2 4 7 4 . 1 1 . 4 Treads . | . . . . . . . . . Leg 2 | . . . 2 . . . . . Wheel 8 | 2 4 2 . . . . . . Hover 2 | . . . . . . . . 2 Flight 11 | . . 5 2 . 1 1 . 2 Utility 6 | 1 . 1 1 1 . . . 2 Device 5 | . . 1 1 1 . . . 2 Storage 1 | 1 . . . . . . . . Processor . | . . . . . . . . . Hackware . | . . . . . . . . . Protection . | . . . . . . . . . Artifact . | . . . . . . . . . Weapon 9 | 3 4 2 . . . . . . Energy Gun 5 | 2 2 1 . . . . . . Energy Cannon . | . . . . . . . . . Ballistic Gun 2 | 1 1 . . . . . . . Ballistic Cannon . | . . . . . . . . . Launcher 2 | . 1 1 . . . . . . Special Weapon . | . . . . . . . . . Impact Weapon . | . . . . . . . . . Slashing Weapon . | . . . . . . . . . Piercing Weapon . | . . . . . . . . . Special Melee Weapon . | . . . . . . . . . Unidentified Prototypes 1 | . . 1 . . . . . . Parts Lost 27 | . 4 3 . 3 . 2 . 15 Power 6 | . . 1 . 1 . . . 4 Propulsion 13 | . 2 2 . 2 . 1 . 6 Utility 4 | . . . . . . 1 . 3 Weapon 4 | . 2 . . . . . . 2 Highest Loss Streak 8 | . 2 3 . 3 . 2 . 8 To Critical Strikes . | . . . . . . . . . Average Slot Usage (%) 60 | . 79 81 77 65 38 32 26 35 Engine 7 | . 13 11 10 6 . . . 1 Leg 1 | . . . 6 . . . . . Wheel 7 | . 24 7 . . . . . . Flight 18 | . . 33 33 33 23 23 20 9 Device 4 | . . 1 4 9 7 7 6 11 Storage 7 | . 14 11 11 9 7 2 . . Energy Gun 8 | . 24 11 . . . . . 3 Launcher 2 | . . 4 11 6 . . . . Naked Turns . | . . . . . . . . . Heaviest Build 14 | 14 14 13 13 10 5 5 . 10 Greatest Support 32 | 32 32 17 26 22 9 11 11 20 Greatest Overweight (x) 4 | . 4 1 . . . . . 2 Average Overweight (x) . | . . . . . . . . . Largest Inventory Capacity 8 | 8 8 8 8 8 8 8 5 5 Average Capacity 6 | 6 8 8 8 8 8 5 5 5 Most Carried 8 | 6 8 8 8 8 7 8 5 5 Average Carried 6 | 3 7 7 6 7 7 5 4 3 Final Capacity 8 | 8 8 8 8 8 8 5 5 5 Final Carried 8 | 6 7 7 8 8 7 5 5 5 Class Distribution -------------------- 71% | Mutant 28% | Sprinter Dominant Class ---------------- Mutant | -10/Materials Mutant | -9/Materials Mutant | -9/Mines Mutant | -8/Materials Mutant | -7/Factory Sprinter | -7/DSF Sprinter | -6/Factory Mutant | -5/Factory Resources | -11 -10 -9 -9 -8 -7 -7 -6 -5 ----------- Run | Yrd Mat Mat Min Mat Fac DSF Fac Fac Matter Collected 327 | 206 44 5 2 2 . . . 68 Remotely . | . . . . . . . . . Salvage Created 158 | . 44 44 12 . . . . 58 Parts 9 | . 2 1 6 . . . . . Haulers Intercepted . | . . . . . . . . . Recyclers Shooed . | . . . . . . . . . Parts Field Recycled . | . . . . . . . . . Retrieved Matter . | . . . . . . . . . Parts Self-Destructed . | . . . . . . . . . Prevented . | . . . . . . . . . Kills | -11 -10 -9 -9 -8 -7 -7 -6 -5 ------- Run | Yrd Mat Mat Min Mat Fac DSF Fac Fac Combat Hostiles Destroyed 9 | . 1 3 4 . . . . 1 Guns 3 | . 1 2 . . . . . . AOE 5 | . . 1 4 . . . . . Classes Destroyed 4 | . 1 2 . . . . . 1 Swarmer 6 | . . 2 4 . . . . . Grunt 1 | . 1 . . . . . . . Sentry 1 | . . 1 . . . . . . Programmer 1 | . . . . . . . . 1 Best Kill Streak 4 | . 1 3 4 . . . . 1 Combat Bots Only 4 | . 1 3 4 . . . . 1 Max Kills in Single Turn 3 | . 1 2 3 . . . . 1 Gunslinging . | . . . . . . . . . Exploded 3 | . . 1 3 . . . . . Melee . | . . . . . . . . . Uniques/NPCs Destroyed . | . . . . . . . . . Combat | -11 -10 -9 -9 -8 -7 -7 -6 -5 -------- Run | Yrd Mat Mat Min Mat Fac DSF Fac Fac Hostile Shots Fired 353 | . 45 56 8 23 . 2 66 153 Missed 166 | . 10 20 3 12 . . 50 71 Damage Taken 3420 | . 520 432 50 244 . 102 165 1907 Core 1606 | . 151 160 14 125 . 63 93 1000 Absorbed by Shields . | . . . . . . . . . Core Remaining (%) 75 | 100 39 . 56 77 . 91 89 . Volleys Fired 26 | . 11 7 2 . . . . 6 Largest 2 | . 2 2 1 . . . . 2 Hottest 130 | . 130 95 30 . . . . 60 Shots Fired 42 | . 20 8 2 . . . . 12 Gun 39 | . 20 7 . . . . . 12 Cannon . | . . . . . . . . . Launcher 3 | . . 1 2 . . . . . Special . | . . . . . . . . . Kinetic . | . . . . . . . . . Thermal 32 | . 13 7 . . . . . 12 Explosive 3 | . . 1 2 . . . . . Electromagnetic 7 | . 7 . . . . . . . Robot Hit Streak 16 | . 7 16 6 . . . . 10 Robot Miss Streak 4 | . 3 4 . . . . . 1 Penetration Max . | . . . . . . . . . Secondary Targets 1 | . . . . . . . . 1 Max Gunslinging Chain 1 | . . . . . . . . 1 Shots Hit Robots 31 | . 13 6 1 . . . . 11 Core Hits 18 | . 3 10 2 . . . . 3 Critical Kills . | . . . . . . . . . Critical Parts Destroyed . | . . . . . . . . . Critical Strikes 1 | . 1 . . . . . . . Burn 1 | . 1 . . . . . . . Melee Attacks . | . . . . . . . . . Impact . | . . . . . . . . . Slashing . | . . . . . . . . . Piercing . | . . . . . . . . . Sneak Attacks . | . . . . . . . . . Combat Hostiles . | . . . . . . . . . Follow-up Attacks . | . . . . . . . . . Damage Inflicted 652 | . 192 143 202 . . . . 115 Guns 417 | . 191 111 . . . . . 115 Cannons . | . . . . . . . . . Explosions 234 | . . 32 202 . . . . . Melee . | . . . . . . . . . Ramming 1 | . 1 . . . . . . . Kinetic . | . . . . . . . . . Thermal 350 | . 124 111 . . . . . 115 Explosive 234 | . . 32 202 . . . . . Electromagnetic 67 | . 67 . . . . . . . Impact . | . . . . . . . . . Slashing . | . . . . . . . . . Piercing . | . . . . . . . . . Highest Corruption 5 | . 2 . . . . . . 5 Average Corruption 2 | . 2 . . . . . . 2 Corruption Purged . | . . . . . . . . . Corruption Blocked . | . . . . . . . . . Effects 3 | . 1 . . . . . . 2 Parts Rejected 1 | . . . . . . . . 1 Data Loss (minor) 1 | . 1 . . . . . . . Data Loss (major) 1 | . . . . . . . . 1 Overload Shots . | . . . . . . . . . Overflow Damage 21 | . . . 21 . . . . . Projectiles . | . . . . . . . . . Explosions 21 | . . . 21 . . . . . Melee . | . . . . . . . . . Knockbacks . | . . . . . . . . . Impact . | . . . . . . . . . Kinetic . | . . . . . . . . . Secondary . | . . . . . . . . . Self-Inflicted Damage 15 | . . . 15 . . . . . Shots 1 | . . . 1 . . . . . Rammed 1 | . 1 . . . . . . . Targets Rammed 1 | . 1 . . . . . . . Kicked . | . . . . . . . . . Crushed . | . . . . . . . . . Highest Temperature 285 | . 285 188 . . . . . . Average Temperature 127 | . 143 82 . . . . . . Received Heat Transfer 795 | . 309 156 . 45 . . 60 225 Effects 1 | . 1 . . . . . . . Interference 1 | . 1 . . . . . . . Siege Activations . | . . . . . . . . . Robots Corrupted . | . . . . . . . . . Combat Hostiles . | . . . . . . . . . Parts Fried . | . . . . . . . . . Impact Corruptions . | . . . . . . . . . Robots Melted 1 | . . . . . . . . 1 Combat Hostiles 1 | . . . . . . . . 1 Parts Melted 4 | . . . . . . . . 4 Heat Transferred 944 | . 407 130 . . . . . 407 Parts Sabotaged . | . . . . . . . . . Parts Stolen . | . . . . . . . . . Parts Stripped . | . . . . . . . . . Power Chain Reactions . | . . . . . . . . . Alert | -11 -10 -9 -9 -8 -7 -7 -6 -5 ------- Run | Yrd Mat Mat Min Mat Fac DSF Fac Fac Peak Influence 216 | . 20 216 189 123 46 32 179 148 Initial 87 | . . 5 84 73 46 32 14 87 Average 65 | . 3 38 162 91 46 20 94 95 Maximum Alert Level 1 | . . 1 . . . . . . Low Security (%) 99 | 100 100 98 100 100 100 100 100 100 Level 1 . | . . 1 . . . . . . Level 2 . | . . . . . . . . . Level 3 . | . . . . . . . . . Level 4 . | . . . . . . . . . Level 5 . | . . . . . . . . . High Security . | . . . . . . . . . Max Security . | . . . . . . . . . Squads Dispatched 6 | . 1 . . 2 . 1 1 1 Investigation 2 | . 1 . . . . . . 1 Extermination . | . . . . . . . . . Reinforcement 4 | . . . . 2 . 1 1 . Assault . | . . . . . . . . . Garrison . | . . . . . . . . . Intercept . | . . . . . . . . . Searches Triggered . | . . . . . . . . . Construction Impeded . | . . . . . . . . . Haulers Reinforced . | . . . . . . . . . Active Scanning Responses . | . . . . . . . . . Cargo Convoy Interrupts . | . . . . . . . . . Stealth | -11 -10 -9 -9 -8 -7 -7 -6 -5 --------- Run | Yrd Mat Mat Min Mat Fac DSF Fac Fac Distress Signals 5 | . 1 2 . . . . 2 . Communications Jammed . | . . . . . . . . . Distress Signals . | . . . . . . . . . Times Spotted 65 | . 3 18 5 9 . 1 13 16 Peak Tracking Total 13 | . 6 13 5 7 . 1 6 11 Tactical Retreats 7 | . 1 2 . . . 1 2 1 Traps | -11 -10 -9 -9 -8 -7 -7 -6 -5 ------- Run | Yrd Mat Mat Min Mat Fac DSF Fac Fac Traps Triggered 3 | . 3 . . . . . . . Indirectly . | . . . . . . . . . Trap Hack Attempts . | . . . . . . . . . Triggered . | . . . . . . . . . Disarmed . | . . . . . . . . . Reprogrammed . | . . . . . . . . . Reused . | . . . . . . . . . Traps Extracted . | . . . . . . . . . Installed . | . . . . . . . . . Triggered . | . . . . . . . . . Machines | -11 -10 -9 -9 -8 -7 -7 -6 -5 ---------- Run | Yrd Mat Mat Min Mat Fac DSF Fac Fac Machines Disabled . | . . . . . . . . . Max in Single Turn . | . . . . . . . . . Machines Repaired . | . . . . . . . . . Machines Dismantled . | . . . . . . . . . Machines Sabotaged . | . . . . . . . . . Overloaded Fab Kills . | . . . . . . . . . Hacking | -11 -10 -9 -9 -8 -7 -7 -6 -5 --------- Run | Yrd Mat Mat Min Mat Fac DSF Fac Fac Machines Accessed 10 | . 1 2 . . 2 . 2 3 Terminals 5 | . 1 2 . . 1 . 1 . Fabricators 3 | . . . . . 1 . 1 1 Repair Stations 1 | . . . . . . . . 1 Recycling Units 1 | . . . . . . . . 1 Scanalyzers . | . . . . . . . . . Garrison Access . | . . . . . . . . . Total Hacks 15 | . 1 3 . . 2 . 3 6 Successful 7 | . . 2 . . 2 . 2 1 Failed 8 | . 1 1 . . . . 1 5 Catastrophic . | . . . . . . . . . Database Lockouts . | . . . . . . . . . Manual 3 | . . . . . 1 . 1 1 Terminals 6 | . 1 3 . . 1 . 1 . Fabricators 4 | . . . . . 1 . 2 1 Repair Stations 2 | . . . . . . . . 2 Recycling Units 3 | . . . . . . . . 3 Scanalyzers . | . . . . . . . . . Garrison Access . | . . . . . . . . . Terminal Hacks 4 | . . 2 . . 1 . 1 . Open DSF 1 | . . . . . 1 . . . Emergency Access Points 1 | . . 1 . . . . . . Alert Level 2 | . . 1 . . . . 1 . Fabricator Hacks . | . . . . . . . . . Repair Station Hacks 1 | . . . . . . . . 1 Refit 1 | . . . . . . . . 1 Recycling Unit Hacks . | . . . . . . . . . Scanalyzer . | . . . . . . . . . Garrison Access Hacks . | . . . . . . . . . Unauthorized Hacks 2 | . . . . . 1 . 1 . Terminals . | . . . . . . . . . Fabricators 2 | . . . . . 1 . 1 . Liberate 2 | . . . . . 1 . 1 . Repair Stations . | . . . . . . . . . Recycling Units . | . . . . . . . . . Scanalyzers . | . . . . . . . . . Garrison Access . | . . . . . . . . . Data Cores Recovered . | . . . . . . . . . Used . | . . . . . . . . . Hacking Detections 6 | . . 1 . . 1 . 2 2 Full Trace Events 1 | . . . . . . . . 1 Feedback Events 1 | . . . . . . . . 1 Corruption 1 | . . . . . . . . 1 Feedback Blocked . | . . . . . . . . . Robot Schematics Acquired . | . . . . . . . . . Robots Built . | . . . . . . . . . Authchips . | . . . . . . . . . Time . | . . . . . . . . . Total Robot Build Rating . | . . . . . . . . . Part Schematics Acquired . | . . . . . . . . . Parts Built . | . . . . . . . . . Authchips . | . . . . . . . . . Time . | . . . . . . . . . Total Part Build Rating . | . . . . . . . . . Parts Repaired . | . . . . . . . . . Time . | . . . . . . . . . Parts Recycled . | . . . . . . . . . Recycled Matter . | . . . . . . . . . Retrieved Matter . | . . . . . . . . . Retrieved Components . | . . . . . . . . . Parts Scanalyzed . | . . . . . . . . . Part Schematics Acquired . | . . . . . . . . . Parts Damaged . | . . . . . . . . . Bothacking | -11 -10 -9 -9 -8 -7 -7 -6 -5 ------------ Run | Yrd Mat Mat Min Mat Fac DSF Fac Fac Used RIF Installer . | . . . . . . . . . Robots Hacked . | . . . . . . . . . Non-combat . | . . . . . . . . . Combat . | . . . . . . . . . Robot Hacks Applied . | . . . . . . . . . Relay Couplers Released . | . . . . . . . . . Fabnet Peak Effective % . | . . . . . . . . . Robots Rewired . | . . . . . . . . . Allies Hacked . | . . . . . . . . . Hacks Repelled . | . . . . . . . . . Allies | -11 -10 -9 -9 -8 -7 -7 -6 -5 -------- Run | Yrd Mat Mat Min Mat Fac DSF Fac Fac Total Allies . | . . . . . . . . . Largest Group . | . . . . . . . . . Highest-Rated Group . | . . . . . . . . . Highest-Rated Ally . | . . . . . . . . . Total Orders . | . . . . . . . . . Ally Attacks . | . . . . . . . . . Total Damage . | . . . . . . . . . Kills . | . . . . . . . . . Allies Corrupted . | . . . . . . . . . Allies Melted . | . . . . . . . . . Intel | -11 -10 -9 -9 -8 -7 -7 -6 -5 ------- Run | Yrd Mat Mat Min Mat Fac DSF Fac Fac Robot Analysis Total . | . . . . . . . . . Derelict Logs Recovered 2 | . . . 2 . . . . . Drone Launches . | . . . . . . . . . Drone Recoveries . | . . . . . . . . . Exploration | -11 -10 -9 -9 -8 -7 -7 -6 -5 ------------- Run | Yrd Mat Mat Min Mat Fac DSF Fac Fac Turns Passed 1055 | 68 230 179 155 46 29 31 153 164 Spaces Moved 2010 | 53 174 319 362 123 73 88 489 329 Core 35 | 6 3 . . . . . . 26 Treads . | . . . . . . . . . Legs 2 | . . . 2 . . . . . Wheels 257 | 47 171 39 . . . . . . Hover 29 | . . . . . . . . 29 Flight 1687 | . . 280 360 123 73 88 489 274 Fastest Speed 30 | 50 90 31 31 31 37 30 30 30 Average Speed 43 | 94 100 44 37 32 37 31 30 37 Slowest Speed 250 | 100 250 112 120 37 37 40 30 150 Overloaded Moves . | . . . . . . . . . Propulsion Burnouts . | . . . . . . . . . Robots Hopped 26 | . . 12 1 2 . . 7 4 Cave-ins Triggered . | . . . . . . . . . Exploration Rate (%) 34 | 3 46 42 76 22 4 83 20 11 Regions Visited 8 Branch Regions 1 Pre-discovered Areas 1 | . . . 1 . . . . . Known Exits Taken 2 | . . . . 1 1 . . . Unknown Exits Taken 5 | 1 1 1 1 . . . 1 . Scrap Searched 1 | . . . 1 . . . . . Spaces Dug . | . . . . . . . . . Terrain Destroyed 28 | . . 11 17 . . . . . Melee . | . . . . . . . . . Projectile . | . . . . . . . . . AOE 28 | . . 11 17 . . . . . Terrain Rammed . | . . . . . . . . . Walls Destroyed . | . . . . . . . . . Machines Disabled . | . . . . . . . . . Actions | -11 -10 -9 -9 -8 -7 -7 -6 -5 --------- Run | Yrd Mat Mat Min Mat Fac DSF Fac Fac Total 2128 | 70 210 335 379 128 74 91 489 352 Wait 5 | . . . 2 . . . 1 2 Move 1958 | 52 173 297 359 118 73 87 477 322 Hop 19 | . . 9 1 2 . . 4 3 Pick Up 43 | 11 7 4 3 4 . 2 4 8 Fast Attach 13 | 1 4 6 1 . . . . 1 Attach 27 | 5 2 4 5 1 1 1 . 8 Detach 4 | . . . 3 . . . . 1 Swap 8 | 1 4 2 1 . . . . . Drop 24 | . 8 6 2 3 . 1 3 1 Fire 26 | . 11 7 2 . . . . 6 Melee . | . . . . . . . . . Ram 1 | . 1 . . . . . . . Kick . | . . . . . . . . . Crush . | . . . . . . . . . Escape Stasis . | . . . . . . . . . Rewire . | . . . . . . . . . Trap . | . . . . . . . . . Miscellaneous . | . . . . . . . . . Route ------- -11/Scrapyard -10/Materials (discovered 2 exits: *Mat / [*Min]) -9/Materials -9/Mines -8/Materials -7/Factory -7/DSF -6/Factory -5/Factory History --------- Turn | Location | Event 27 | -11/Scrapyard | Discovered new exit (range 15) 69 | -11/Scrapyard | Entered Materials 162 | -10/Materials | Discovered new exit (range 6) 285 | -10/Materials | Discovered new exit (range 11) 286 | -10/Materials | Core integrity fell below 50% 299 | -10/Materials | Entered another Materials area 299 | -9/Materials | Evolved 2 slots: Propulsion x2 325 | -9/Materials | Build established: Mutant 451 | -9/Materials | Discovered new exit (range 15) 478 | -9/Materials | Entered Mines 479 | -9/Mines | Assembled infested the area 504 | -9/Mines | Learned location of 1 exit from Materials 508 | -9/Mines | Lost 3 parts (1p2n) 588 | -9/Mines | Discovered new exit (range 9) 589 | -9/Mines | Learned location of Storage (-8) 610 | -9/Mines | Found a hidden stash of uninstalled traps 614 | -9/Mines | Learned Materials security intel 633 | -9/Mines | Entered Materials 633 | -8/Materials | Evolved 2 slots: Power x1, Utility x1 634 | -8/Materials | Identified exit to Factory 679 | -8/Materials | Entered Factory 679 | -7/Factory | Evolved 2 slots: Propulsion x2 708 | -7/Factory | Lost 3 parts (1p2n) 708 | -7/Factory | Identified exit to DSF 708 | -7/Factory | Entered DSF 733 | -7/DSF | Additional patrols routed to DSF 735 | -7/DSF | Discovered new exit (range 15) 739 | -7/DSF | Entered Factory 739 | -6/Factory | Evolved 2 slots: Utility x1, Weapon x1 889 | -6/Factory | Discovered new exit (range 11) 892 | -6/Factory | Entered another Factory area 892 | -5/Factory | Evolved 2 slots: Propulsion x1, Weapon x1 998 | -5/Factory | Lost 7 parts (2p3n1u1w) 1021 | -5/Factory | Spotted B-75 Beast 1041 | -5/Factory | Core integrity fell below 50% 1054 | -5/Factory | Core integrity fell below 20% 1056 | -5/Factory | Destroyed by B-75 Beast with Heavy Plasma Cannon Last Messages --------------- 01021_ Surge Thruster destroyed. 01021_ Knocked back. 01021_ Nuclear Pulse Thruster destroyed. 01024_ Acquired 6 matter. 01025_ K-01 Serf cleans the Recycling Unit. 01026_ Transmission Jammer destroyed. 01032_ Acquired Antigrav System. 01033_ K-01 Serf cleans the Recycling Unit. 01034_ Acquired Antigrav System. 01036_ System corrupted: Gravmag Array rejected. 01037_ Adv. Cooling System destroyed. 01038_ Acquired Antigrav System. 01040_ Knocked back. 01042_ Acquired 4 matter. 01046_ Antigrav System destroyed. 01046_ Knocked back. 01047_ R-10 Processor collects Gravmag Array. 01053_ Fusion Modulator explodes. 01053_ W-25 Informer destroyed. 01056_ Fusion Compressor destroyed. Map ----- +----------------------------------------------------+ | ?????????????????????????????????????????????????? | | ?????????????????????????????????????????????????? | | ?????????????????????????????????????????????????? | | ?????????????????????????????????????????????????? | | ?????????????????????????????????????????????????? | | ?????????????????????????????????????????????????? | | ?????????????????????????????????????????????????? | | ?????????????????????????????????????????????????? | | ?? ????????????????????????????????????????????? | | ? ""?????????????????????????????????????????? | | ? ?????????????????????????????????????????? | | ? ! ????????????????????????????????????????? | | # ?!???????????????????????????????????????? | | ? ! ????????????????????????????????????? | | ??###########???????????????????????? | | " " ]]] ###;;;; ;;;;###?????????????????????? | | "Y" ]]] # ;#######???????????????? | | """ ]]] # ;# ! ???????????????? | | k ;; ""???????????????? | | ; ;; "????????????????? | | ; ; ?????????????????? | | ; ; =???????????????????? | | ; ; ????????????????????? | | # R #?????????????????????? | | # #?????????????????????? | | # @#??????????????????????? | | #p % #??????????????????????? | | /p #??????????????????????? | | R;;;;;;;;;;;#+#??????????????????????? | | %= = BB ## # ### #??????????????????????? | | = %#######??# #??????????????????????? | | = "##????????# #??????????????????????? | | ######"###+##"####??????# #??????????????????????? | | ????# ! #??????# #??????????????????????? | | ????# #??????# #??????????????????????? | | ????# """"""""" #??????# #??????????????????????? | | ????# #??????# #??????????????????????? | | ????# """"""""" #??????? ???????????????????????? | | ????# #??????? ???????????????????????? | | ????# """"""""" #??????? ???????????????????????? | | ????# #??????? ???????????????????????? | | ????#?""""""""" #??????? ???????????????????????? | | ????????? #??????? ???????????????????????? | | ??????????????" #???????#???????????????????????? | | ?????????????? #???????????????????????????????? | | ???????????????###???????????????????????????????? | | ?????????????????????????????????????????????????? | | ?????????????????????????????????????????????????? | | ?????????????????????????????????????????????????? | | ?????????????????????????????????????????????????? | +----------------------------------------------------+ Best States ------------- Heat Dissipation 40 Energy Generation 25 Energy Capacity 250 Matter Stores 270 Matter Capacity 300 Sight Range 16 Robot Scan Range 14 Terrain Scan Density 10 Jamming Range 12 Additional Mass Support 9 Armor Coverage 80 Evasion (%) 64 Item Schematics ----------------- None Robot Schematics ------------------ None Fabricated ------------ Nothing Alien Tech Used ----------------- None Achievements -------------- None Challenges ------------ None Game ------ Seed NodeDisposableTube Manual? 0 Play Time 00:31:36 Cumulative 94.6 hours Start 2024.07.11 @ 00:52:24 End 2024.07.11 @ 01:21:39 Sessions 1 Manual Loads 0 Difficulty Rogue Special Mode None Game No. 138 Rogue 138 Adventurer 0 Explorer 0 Win Type - Total 0 Types 0/0/0/0/0/0/0/0/0 Lore% 42 Gallery% 55 Achievement% 35 Wizard Run 0 Options --------- Layout 0 ASCII 0 Keyboard 0 Movement Mouse Keybinds 0 Fullscreen 1 Font 24/Smallcaps Map View 76x50 Zoom Use 0% Tactical HUD 1 Map Filters NONE Filters NONE Steam 1 RUN: dfe88f12-d8fa-427f-a50f-0ed7c8184812